fUSD/lending_fUSD_20260628
["ID","MTS","AMOUNT","RATE_DAILY","PERIOD"]
[426584941,1782634241000,-412.0,0.00020974,2]
[426584940,1782634241000,-384.19902295,0.000258,2]
[426584939,1782634241000,-186.60335032,0.0001794,2]
[426584938,1782634241000,-186.60335032,0.000138,2]
[426584936,1782634241000,-13350.86878883,0.000258,2]
[426584933,1782634241000,-1034217.69933293,0.000258,2]
[426584937,1782634241000,-18549.71018159,0.000258,2]
[426584954,1782634241000,-243.67314914,0.00025819,2]
[426584950,1782634241000,-483.04314723,0.00025819,2]
[426584960,1782634241000,-244.34449759,0.00025819,2]
[426584934,1782634241000,-1921.08915545,0.000258,2]
[426584961,1782634241000,-160.26809834,0.00025819,2]
[426584957,1782634241000,-241.65419928,0.00025819,2]
[426584995,1782634241000,-464.87389839,0.00025823,2]
[426584990,1782634241000,-463.92268232,0.00025822,2]
[426584985,1782634241000,-580.47973391,0.00025822,2]
[426584986,1782634241000,-544.21656964,0.00025822,2]
[426584994,1782634241000,-484.25773879,0.00025823,2]
[426584982,1782634241000,-554.44279061,0.00025822,2]
[426584984,1782634241000,-244.53997899,0.00025822,2]
[426584983,1782634241000,-504.65698584,0.00025822,2]
[426584988,1782634241000,-454.22610517,0.00025822,2]
[426584993,1782634241000,-257.29165867,0.00025823,2]
[426584989,1782634241000,-222.11026954,0.00025822,2]
[426584987,1782634241000,-244.30883762,0.00025822,2]
[426584991,1782634241000,-402.57948522,0.00025822,2]
[426584992,1782634241000,-468.04699258,0.00025822,2]
[426584981,1782634241000,-157.07205747,0.00025822,2]
[426584978,1782634241000,-311.02796367,0.00025819,2]
[426584958,1782634241000,-358.79328455,0.00025819,2]
[426584968,1782634241000,-551.07307458,0.00025819,2]
[426584971,1782634241000,-457.78557198,0.00025819,2]
[426584974,1782634241000,-462.69813035,0.00025819,2]
[426584976,1782634241000,-459.65219642,0.00025819,2]
[426584964,1782634241000,-229.82680135,0.00025819,2]
[426584980,1782634241000,-453.65521558,0.00025819,2]
[426584979,1782634241000,-239.22453942,0.00025819,2]
[426584969,1782634241000,-263.94082839,0.00025819,2]
[426584972,1782634241000,-443.0670656,0.00025819,2]
[426584975,1782634241000,-314.18512051,0.00025819,2]
[426584977,1782634241000,-466.21924337,0.00025819,2]
[426584973,1782634241000,-309.53654027,0.00025819,2]
[426585029,1782634242000,-610.38076264,0.00026379,2]
[426585028,1782634242000,-527.88165678,0.00026379,2]
[426585026,1782634242000,-353.32141889,0.00026379,2]
[426585030,1782634242000,-221.5335328,0.00026379,2]
[426585032,1782634242000,-616.93084047,0.00026379,2]
[426585033,1782634242000,-213.9414715,0.00026379,2]
[426585036,1782634242000,-621.62565783,0.00026379,2]
[426585017,1782634242000,-380.08294999,0.00026379,2]
[426585034,1782634242000,-471.27768076,0.00026379,2]
[426585021,1782634242000,-538.18992683,0.00026379,2]
[426585031,1782634242000,-464.3048104,0.00026379,2]
[426585035,1782634242000,-612.86959523,0.00026379,2]
[426585042,1782634242000,-314.14411494,0.00026382,2]
[426585039,1782634242000,-209.29198147,0.0002638,2]
[426585038,1782634242000,-478.44907885,0.00026379,2]
[426585040,1782634242000,-442.63758152,0.0002638,2]
[426585041,1782634242000,-408.24451778,0.0002638,2]
[426585043,1782634242000,-739.25705415,0.00026382,2]
[426585047,1782634242000,-773.97297855,0.00026382,2]
[426585045,1782634242000,-672.87598112,0.00026382,2]
[426585044,1782634242000,-460.05949555,0.00026382,2]
[426585046,1782634242000,-489.07995799,0.00026382,2]
[426585049,1782634242000,-532.36258024,0.00026382,2]
[426585023,1782634242000,-245.87417169,0.00026379,2]
[426585027,1782634242000,-734.76409945,0.00026379,2]
[426585018,1782634242000,-320.53619669,0.00026379,2]
[426585007,1782634242000,-430.41819537,0.00026379,2]
[426585019,1782634242000,-399.47393589,0.00026379,2]
[426585001,1782634242000,-53122.2813653,0.00026352,2]
[426584997,1782634242000,-3500.0,0.000259,9]
[426584996,1782634242000,-641.55850924,0.00025823,2]
[426584999,1782634242000,-4727.9119605,0.000261,2]
[426584998,1782634242000,-181.11671621,0.00025989,2]
[426585000,1782634242000,-4727.9119605,0.000263,2]
[426585002,1782634242000,-383.35189707,0.00026379,2]
[426585005,1782634242000,-428.11548402,0.00026379,2]
[426585004,1782634242000,-311.72619887,0.00026379,2]
[426585003,1782634242000,-401.62501627,0.00026379,2]
[426585006,1782634242000,-370.14840026,0.00026379,2]
[426585024,1782634242000,-459.65360271,0.00026379,2]
[426585059,1782634242000,-519.81889071,0.00026383,2]
[426585013,1782634242000,-319.29644036,0.00026379,2]
[426585011,1782634242000,-644.05752964,0.00026379,2]
[426585009,1782634242000,-407.13594905,0.00026379,2]
[426585010,1782634242000,-212.93667001,0.00026379,2]
[426585012,1782634242000,-496.98212055,0.00026379,2]
[426585015,1782634242000,-422.97184179,0.00026379,2]
[426585025,1782634242000,-608.48576143,0.00026379,2]
[426585014,1782634242000,-487.34629829,0.00026379,2]
[426585016,1782634242000,-174.81990942,0.00026379,2]
[426585020,1782634242000,-222.28753369,0.00026379,2]
[426585022,1782634242000,-684.31435833,0.00026379,2]
[426585008,1782634242000,-230.20183412,0.00026379,2]
[426585060,1782634242000,-855.41134566,0.00026383,2]
[426585037,1782634242000,-466.5419455,0.00026379,2]
[426585056,1782634242000,-514.58331734,0.00026383,2]
[426585092,1782634242000,-151.0,0.00027397,2]
[426585090,1782634242000,-151.0,0.00027397,2]
[426585093,1782634242000,-3097.95,0.00027397,2]
[426585097,1782634242000,-291.04,0.00027397,2]
[426585095,1782634242000,-530.85,0.00027397,2]
[426585101,1782634242000,-151.0,0.00027397,2]
[426585099,1782634242000,-151.0,0.00027397,2]
[426585100,1782634242000,-626.85,0.00027397,10]
[426585102,1782634242000,-161.18837706,0.00027397,2]
[426585104,1782634242000,-170.65575316,0.00027397,2]
[426585103,1782634242000,-644.75350823,0.00027397,2]
[426585106,1782634242000,-786.50233295,0.00027397,2]
[426585105,1782634242000,-589.87674971,0.00027397,2]
[426585115,1782634242000,-879.42,0.000274,7]
[426585108,1782634242000,-322.37675412,0.00027397,2]
[426585116,1782634242000,-160.92014735,0.000274,2]
[426585112,1782634242000,-3416.49827112,0.00027397,2]
[426585111,1782634242000,-393.25116648,0.00027397,2]
[426585107,1782634242000,-341.31150633,0.00027397,2]
[426585110,1782634242000,-196.62558324,0.00027397,2]
[426585117,1782634242000,-5227.15,0.000274,2]
[426585118,1782634242000,-5227.15,0.000274,2]
[426585109,1782634242000,-483.56513117,0.00027397,2]
[426585053,1782634242000,-618.56357643,0.00026382,2]
[426585113,1782634242000,-167.7,0.00027399,2]
[426585086,1782634242000,-151.0,0.00027397,2]
[426585088,1782634242000,-151.0,0.00027397,2]
[426585114,1782634242000,-317.82,0.000274,7]
[426585081,1782634242000,-191.89,0.00027397,2]
[426585076,1782634242000,-500.0,0.00027389,2]
[426585055,1782634242000,-624.06265677,0.00026382,2]
[426585052,1782634242000,-609.96093952,0.00026382,2]
[426585057,1782634242000,-645.67698506,0.00026383,2]
[426585058,1782634242000,-697.31084758,0.00026383,2]
[426585048,1782634242000,-725.62209286,0.00026382,2]
[426585051,1782634242000,-444.22053908,0.00026382,2]
[426585054,1782634242000,-603.86922783,0.00026382,2]
[426585063,1782634242000,-390.24741605,0.00026756,2]
[426585072,1782634242000,-780.07832096,0.00026943,2]
[426585062,1782634242000,-25058.41532362,0.00026422,2]
[426585061,1782634242000,-3186.84348697,0.000264,2]
[426585050,1782634242000,-605.6348069,0.00026382,2]
[426585064,1782634242000,-180.20999459,0.00026772,2]
[426585066,1782634242000,-762.9759533,0.00026939,2]
[426585074,1782634242000,-157.060907,0.00027276,2]
[426585077,1782634242000,-4202.43124681,0.0002739,2]
[426585078,1782634242000,-8301.13170016,0.0002739,2]
[426585073,1782634242000,-160.24,0.00027114,7]
[426585069,1782634242000,-967.46622319,0.00026943,2]
[426585079,1782634242000,-214.1092993,0.00027397,2]
[426585070,1782634242000,-907.02761607,0.00026943,2]
[426585071,1782634242000,-757.04350862,0.00026943,2]
[426585068,1782634242000,-767.00558083,0.00026943,2]
[426585065,1782634242000,-918.45512431,0.00026939,2]
[426585067,1782634242000,-766.08699403,0.00026939,2]
[426585153,1782634243000,-1500.0,0.00028594,2]
[426585144,1782634243000,-500.0,0.00028594,2]
[426585143,1782634243000,-709.98,0.00028592,2]
[426585145,1782634243000,-1409.55672067,0.00028594,2]
[426585146,1782634243000,-1500.0,0.00028594,2]
[426585147,1782634243000,-1500.0,0.00028594,2]
[426585149,1782634243000,-1500.0,0.00028594,2]
[426585150,1782634243000,-1500.0,0.00028594,2]
[426585155,1782634243000,-1500.0,0.00028594,2]
[426585160,1782634243000,-500.0,0.0002861,2]
[426585157,1782634243000,-1351.3747258,0.00028594,2]
[426585164,1782634243000,-500.0,0.0002861,2]
[426585159,1782634243000,-500.0,0.0002861,2]
[426585161,1782634243000,-500.0,0.0002861,2]
[426585156,1782634243000,-1500.0,0.00028594,2]
[426585162,1782634243000,-500.0,0.0002861,2]
[426585163,1782634243000,-500.0,0.0002861,2]
[426585166,1782634243000,-161.0,0.00028669,30]
[426585165,1782634243000,-446.87377378,0.0002861,2]
[426585168,1782634243000,-536.0,0.00028669,30]
[426585167,1782634243000,-154.0,0.00028669,30]
[426585170,1782634243000,-157.0,0.00028671,30]
[426585151,1782634243000,-1500.0,0.00028594,2]
[426585173,1782634243000,-154.0,0.00028671,30]
[426585158,1782634243000,-500.0,0.0002861,2]
[426585148,1782634243000,-1500.0,0.00028594,2]
[426585142,1782634243000,-557.0,0.00028507,2]
[426585154,1782634243000,-174.3991004,0.00028594,2]
[426585172,1782634243000,-333.0,0.00028671,30]
[426585120,1782634243000,-5227.15,0.000274,2]
[426585130,1782634243000,-936.09398516,0.00027783,2]
[426585119,1782634243000,-5227.15,0.000274,2]
[426585121,1782634243000,-5227.15,0.000274,2]
[426585122,1782634243000,-205.5101132,0.000275,2]
[426585123,1782634243000,-500.0,0.000275,7]
[426585126,1782634243000,-915.57114395,0.00027779,2]
[426585124,1782634243000,-360.35092251,0.00027574,2]
[426585127,1782634243000,-920.40669699,0.00027783,2]
[426585125,1782634243000,-210.64309224,0.00027676,2]
[426585152,1782634243000,-1500.0,0.00028594,2]
[426585129,1782634243000,-908.45221034,0.00027783,2]
[426585132,1782634243000,-2000.0,0.00027825,7]
[426585136,1782634243000,-160.0,0.00028,2]
[426585131,1782634243000,-298.5,0.0002782,30]
[426585137,1782634243000,-643.0,0.00028,2]
[426585138,1782634243000,-22500.0,0.00028,2]
[426585141,1782634243000,-1009.35,0.00028364,7]
[426585135,1782634243000,-983.12791619,0.00027957,2]
[426585140,1782634243000,-25058.41532362,0.00028211,2]
[426585134,1782634243000,-2778.0454688,0.00027868,2]
[426585139,1782634243000,-3186.84348697,0.000282,2]
[426585133,1782634243000,-500.0,0.00027849,15]
[426585128,1782634243000,-1088.43313929,0.00027783,2]
[426585171,1782634243000,-152.0,0.00028671,30]
[426585174,1782634243000,-155.0,0.00028671,30]
[426585169,1782634243000,-545.0,0.00028671,30]
[426585203,1782634243000,-520.16865279,0.00029142,2]
[426585200,1782634243000,-228.23812322,0.00029054,7]
[426585206,1782634243000,-317.82,0.000292,7]
[426585207,1782634243000,-11853.1831485,0.00029247,2]
[426585209,1782634243000,-557.0,0.00029547,3]
[426585212,1782634243000,-161.0,0.00029669,30]
[426585215,1782634243000,-545.0,0.00029671,30]
[426585211,1782634243000,-501.70420443,0.00029644,2]
[426585210,1782634243000,-2000.0,0.00029565,7]
[426585216,1782634243000,-157.0,0.00029671,30]
[426585213,1782634243000,-154.0,0.00029669,30]
[426585214,1782634243000,-536.0,0.00029669,30]
[426585208,1782634243000,-1409.55672067,0.00029416,2]
[426585217,1782634243000,-152.0,0.00029671,30]
[426585229,1782634243000,-4960.9915,0.00029871,2]
[426585218,1782634243000,-333.0,0.00029671,30]
[426585219,1782634243000,-154.0,0.00029671,30]
[426585221,1782634243000,-571.0,0.00029671,30]
[426585222,1782634243000,-158.0,0.00029671,30]
[426585225,1782634243000,-1409.55672067,0.0002969,2]
[426585223,1782634243000,-154.0,0.00029671,30]
[426585224,1782634243000,-160.24,0.00029671,7]
[426585227,1782634243000,-197.18852701,0.000298,2]
[426585228,1782634243000,-4400.0,0.000298,10]
[426585175,1782634243000,-571.0,0.00028671,30]
[426585204,1782634243000,-1409.55672067,0.00029142,2]
[426585205,1782634243000,-1500.0,0.00029142,2]
[426585220,1782634243000,-155.0,0.00029671,30]
[426585202,1782634243000,-7390.0,0.0002912,20]
[426585201,1782634243000,-879.42,0.000291,7]
[426585226,1782634243000,-1500.0,0.0002969,2]
[426585176,1782634243000,-158.0,0.00028671,30]
[426585181,1782634243000,-1409.55672067,0.00028868,2]
[426585186,1782634243000,-5338.19213494,0.00029,2]
[426585180,1782634243000,-408.31899063,0.00028781,2]
[426585177,1782634243000,-154.0,0.00028671,30]
[426585179,1782634243000,-151.4268351,0.00028778,10]
[426585182,1782634243000,-500.0,0.00028999,2]
[426585178,1782634243000,-378.34848743,0.00028705,2]
[426585187,1782634243000,-20833.91118305,0.00029,2]
[426585184,1782634243000,-508.85,0.00029,2]
[426585183,1782634243000,-500.0,0.00029,2]
[426585189,1782634243000,-1004.4210907,0.00029,2]
[426585199,1782634243000,-464.92284466,0.00029054,7]
[426585198,1782634243000,-1092.10964935,0.00029043,2]
[426585185,1782634243000,-11072.17181601,0.00029,2]
[426585195,1782634243000,-1068.16633461,0.0002904,2]
[426585197,1782634243000,-1059.86091207,0.00029043,2]
[426585192,1782634243000,-220.48113941,0.00029,2]
[426585194,1782634243000,-557.0,0.00029027,2]
[426585196,1782634243000,-1269.8386625,0.00029043,2]
[426585191,1782634243000,-451.20785105,0.00029,2]
[426585193,1782634243000,-44601.34630483,0.00029,2]
[426585190,1782634243000,-21848.34627574,0.00029,2]
[426585188,1782634243000,-10382.44625727,0.00029,2]
[426585263,1782634244000,-15000.0,0.0003,2]
[426585248,1782634244000,-304.92,0.0003,2]
[426585252,1782634244000,-1859.66618216,0.0003,2]
[426585253,1782634244000,-1000.0,0.0003,2]
[426585254,1782634244000,-166.78212043,0.0003,2]
[426585251,1782634244000,-1129.45462786,0.0003,2]
[426585259,1782634244000,-1095.65649088,0.0003,3]
[426585258,1782634244000,-5069.02862504,0.0003,2]
[426585267,1782634244000,-151.0,0.0003,7]
[426585257,1782634244000,-95150.0,0.0003,5]
[426585261,1782634244000,-15000.0,0.0003,2]
[426585265,1782634244000,-151.0,0.0003,7]
[426585244,1782634244000,-800.0,0.0003,2]
[426585262,1782634244000,-512873.11082981,0.0003,2]
[426585260,1782634244000,-25058.41532362,0.0003,2]
[426585247,1782634244000,-20335.72116223,0.0003,2]
[426585240,1782634244000,-500.0,0.00029999,2]
[426585245,1782634244000,-275.97330948,0.0003,2]
[426585255,1782634244000,-14619.4117846,0.0003,2]
[426585230,1782634244000,-500.0,0.00029899,2]
[426585231,1782634244000,-80565.21042707,0.000299,2]
[426585232,1782634244000,-155.58666158,0.000299,2]
[426585235,1782634244000,-8046.82687676,0.000299,2]
[426585234,1782634244000,-8046.82687676,0.000299,2]
[426585233,1782634244000,-8046.82687676,0.000299,2]
[426585250,1782634244000,-10385.94496012,0.0003,2]
[426585237,1782634244000,-800.0,0.000299,10]
[426585241,1782634244000,-500.0,0.00029999,2]
[426585239,1782634244000,-242.49776427,0.0002999,2]
[426585243,1782634244000,-800.0,0.0003,2]
[426585242,1782634244000,-500.0,0.00029999,2]
[426585236,1782634244000,-8046.82687676,0.000299,2]
[426585246,1782634244000,-278.32836216,0.0003,2]
[426585249,1782634244000,-1117.27963732,0.0003,2]
[426585238,1782634244000,-1409.55672067,0.00029964,2]
[426585264,1782634244000,-151.0,0.0003,7]
[426585266,1782634244000,-3186.84348697,0.0003,2]
[426585277,1782634244000,-557.0,0.00030067,3]
[426585292,1782634244000,-500.0,0.00030099,2]
[426585294,1782634244000,-500.0,0.00030099,2]
[426585291,1782634244000,-500.0,0.00030099,2]
[426585290,1782634244000,-500.0,0.00030099,2]
[426585283,1782634244000,-500.0,0.00030099,2]
[426585298,1782634244000,-500.0,0.00030099,2]
[426585296,1782634244000,-500.0,0.00030099,2]
[426585293,1782634244000,-500.0,0.00030099,2]
[426585297,1782634244000,-500.0,0.00030099,2]
[426585295,1782634244000,-500.0,0.00030099,2]
[426585303,1782634244000,-313.2620278,0.000301,7]
[426585301,1782634244000,-472.94619313,0.00030099,2]
[426585302,1782634244000,-1511975.75782353,0.000301,7]
[426585304,1782634244000,-6501.71431494,0.000301,7]
[426585305,1782634244000,-19.61166287,0.000301,7]
[426585268,1782634244000,-267.010327,0.0003,7]
[426585299,1782634244000,-500.0,0.00030099,2]
[426585289,1782634244000,-500.0,0.00030099,2]
[426585300,1782634244000,-500.0,0.00030099,2]
[426585288,1782634244000,-500.0,0.00030099,2]
[426585287,1782634244000,-500.0,0.00030099,2]
[426585281,1782634244000,-500.0,0.00030099,2]
[426585278,1782634244000,-7390.0,0.0003008,20]
[426585269,1782634244000,-288.74911,0.0003,7]
[426585276,1782634244000,-202.49756897,0.00030067,2]
[426585280,1782634244000,-500.0,0.00030099,2]
[426585271,1782634244000,-288.74911,0.0003,7]
[426585279,1782634244000,-367.75034493,0.0003009,2]
[426585270,1782634244000,-288.74911,0.0003,7]
[426585273,1782634244000,-151.0,0.0003,7]
[426585285,1782634244000,-500.0,0.00030099,2]
[426585272,1782634244000,-288.74911,0.0003,7]
[426585275,1782634244000,-151.0,0.0003,7]
[426585282,1782634244000,-500.0,0.00030099,2]
[426585286,1782634244000,-500.0,0.00030099,2]
[426585284,1782634244000,-500.0,0.00030099,2]
[426585274,1782634244000,-151.0,0.0003,7]
[426585308,1782634245000,-850.73859726,0.000257,2]
[426585306,1782634245000,-313.52904043,0.000257,2]
[426585309,1782634245000,-777.67749305,0.000257,2]
[426585307,1782634245000,-124.10110619,0.000257,2]
[426585325,1782634246000,-151.0,0.000301,7]
[426585326,1782634246000,-151.0,0.000301,7]
[426585323,1782634246000,-532.07479451,0.000301,2]
[426585329,1782634246000,-151.0,0.000301,7]
[426585327,1782634246000,-151.0,0.000301,7]
[426585328,1782634246000,-151.0,0.000301,7]
[426585324,1782634246000,-151.0,0.000301,7]
[426585322,1782634246000,-18443.32303211,0.000301,7]
[426585320,1782634246000,-154.0,0.00021,2]
[426585312,1782634246000,-247.14473314,0.000257,2]
[426585315,1782634246000,-871.816639,0.00028527,2]
[426585318,1782634246000,-4821.5,0.000301,7]
[426585319,1782634246000,-1901.71773,0.000301,7]
[426585317,1782634246000,-196.09845181,0.000301,7]
[426585316,1782634246000,-192.64271976,0.00029244,2]
[426585310,1782634246000,-1976.8996983,0.00013376,2]
[426585314,1782634246000,-192.64271976,0.00028244,2]
[426585311,1782634246000,-154.0,0.0002,2]
[426585313,1782634246000,-2297.70812153,0.000257,2]
[426585332,1782634246000,-15000.0,0.000301,2]
[426585321,1782634246000,-2288.52550938,0.000301,7]
[426585331,1782634246000,-151.0,0.000301,7]
[426585341,1782634246000,-151.0,0.000301,7]
[426585333,1782634246000,-151.0,0.000301,7]
[426585330,1782634246000,-15000.0,0.000301,2]
[426585350,1782634246000,-14026.99,0.000302,2]
[426585354,1782634246000,-1500.0,0.00030238,2]
[426585352,1782634246000,-680.9526339,0.00030212,7]
[426585351,1782634246000,-317.82,0.000302,7]
[426585349,1782634246000,-15000.0,0.000302,2]
[426585346,1782634246000,-291.04,0.00030137,2]
[426585348,1782634246000,-1277.0,0.0003019,2]
[426585347,1782634246000,-1361.0,0.0003019,2]
[426585342,1782634246000,-190.973473,0.000301,7]
[426585353,1782634246000,-1409.55672067,0.00030238,2]
[426585340,1782634246000,-171.473248,0.000301,7]
[426585344,1782634246000,-216.34279399,0.00030115,2]
[426585337,1782634246000,-288.74911,0.000301,7]
[426585338,1782634246000,-288.74911,0.000301,7]
[426585339,1782634246000,-288.74911,0.000301,7]
[426585345,1782634246000,-709.98,0.00030115,2]
[426585335,1782634246000,-151.0,0.000301,7]
[426585336,1782634246000,-288.74911,0.000301,7]
[426585334,1782634246000,-151.0,0.000301,7]
[426585343,1782634246000,-216.34279399,0.00030115,2]
[426585364,1782634247000,-300.0,0.00030507,30]
[426585366,1782634247000,-1409.55672067,0.00030512,2]
[426585369,1782634247000,-2978.189,0.00030617,26]
[426585371,1782634247000,-154.0,0.00030669,30]
[426585375,1782634247000,-152.0,0.00030671,30]
[426585378,1782634247000,-155.0,0.00030671,30]
[426585365,1782634247000,-169.58806504,0.00030507,7]
[426585368,1782634247000,-172.522,0.00030617,26]
[426585367,1782634247000,-557.0,0.00030587,4]
[426585370,1782634247000,-161.0,0.00030669,30]
[426585363,1782634247000,-300.0,0.00030507,7]
[426585374,1782634247000,-157.0,0.00030671,30]
[426585359,1782634247000,-466.30187714,0.00030373,2]
[426585360,1782634247000,-800.0,0.000305,2]
[426585356,1782634247000,-15000.0,0.000303,2]
[426585355,1782634247000,-879.42,0.000303,7]
[426585357,1782634247000,-3650.0,0.00030342,2]
[426585358,1782634247000,-4510.336,0.00030342,2]
[426585361,1782634247000,-800.0,0.000305,2]
[426585377,1782634247000,-154.0,0.00030671,30]
[426585362,1782634247000,-301.08639724,0.000305,7]
[426585373,1782634247000,-545.0,0.00030671,30]
[426585396,1782634247000,-4381.15776296,0.0003104,20]
[426585394,1782634247000,-800.0,0.00031,2]
[426585395,1782634247000,-1000.0,0.00031,7]
[426585393,1782634247000,-800.0,0.00031,2]
[426585392,1782634247000,-619.8657303,0.00030992,2]
[426585391,1782634247000,-205.59376406,0.00030935,7]
[426585389,1782634247000,-114.29369684,0.00030933,2]
[426585390,1782634247000,-1248.12531354,0.00030933,2]
[426585388,1782634247000,-1096.97591695,0.00030933,2]
[426585372,1782634247000,-536.0,0.00030669,30]
[426585386,1782634247000,-216.52111506,0.00030933,2]
[426585385,1782634247000,-1220.76152527,0.0003093,2]
[426585384,1782634247000,-150.0,0.00030877,2]
[426585383,1782634247000,-1500.0,0.00030786,2]
[426585382,1782634247000,-1409.55672067,0.00030786,2]
[426585381,1782634247000,-154.0,0.00030671,30]
[426585379,1782634247000,-571.0,0.00030671,30]
[426585380,1782634247000,-158.0,0.00030671,30]
[426585376,1782634247000,-333.0,0.00030671,30]
[426585387,1782634247000,-1451.24418571,0.00030933,2]
[426585397,1782634273000,-250.0,0.00014,2]
[426585398,1782634327000,-234.85812305,0.00013375,2]
[426585399,1782634328000,848.53,0.00028967,120]
[426585403,1782634368000,152.0,0.00024174,120]
[426585402,1782634368000,152.0,0.00024174,120]
[426585400,1782634368000,152.0,0.00024174,120]
[426585404,1782634368000,152.0,0.00024174,120]
[426585401,1782634368000,152.0,0.00024174,120]
[426585405,1782634369000,169.03,0.000134,120]
[426585406,1782634380000,-1972.77970246,0.00012928,2]
[426585407,1782634433000,-301.24,0.00012282,2]
[426585408,1782634469000,243.05,0.00013021,3]
[426585409,1782634487000,-301.24,0.00012374,2]
[426585410,1782634540000,-150.0,0.0001242,2]
[426585411,1782634569000,11312.2647,0.00029547,120]
[426585412,1782634593000,-1972.77970246,0.00012336,2]
[426585413,1782634647000,-867.41029754,0.00012336,2]
[426585414,1782634670000,200.0,0.00012593,7]
[426585415,1782634700000,-150.0,0.00012118,2]
[426585416,1782634753000,-194.59,0.00012109,2]
[426585419,1782634765000,166.66,0.00011913,2]
[426585418,1782634765000,166.66,0.00011672,2]
[426585417,1782634765000,166.66,0.00011432,2]
[426585420,1782634792000,192.79266642,0.00011869,2]
[426585421,1782634813000,150.0,0.00011673,2]
[426585422,1782634817000,742.36,0.00011849,2]
[426585423,1782634901000,255.15723517,0.00012993,7]
[426585425,1782634902000,303.04,0.00011632,2]
[426585424,1782634902000,303.04,0.00011432,2]
[426585426,1782634903000,303.04,0.00011833,2]
[426585430,1782635110000,-188.555829,0.00012024,2]
[426585431,1782635136000,4613.35,0.00011593,2]
[426585433,1782635164000,-150.0,0.00012026,2]
[426585434,1782635175000,-200.88963426,0.00012028,2]
[426585435,1782635175000,-172.04,0.00012034,2]
[426585437,1782635175000,-250.0,0.00012055,2]
[426585438,1782635175000,-250.0,0.000121,2]
[426585436,1782635175000,-303.04,0.00012034,2]
[426585442,1782635175000,-742.36,0.00012145,2]
[426585440,1782635175000,-218.75814337,0.00012118,2]
[426585443,1782635175000,-166.66,0.00012154,2]
[426585444,1782635175000,-150.0,0.00012159,2]
[426585439,1782635175000,-200.0,0.00012118,2]
[426585441,1782635175000,-326.58980126,0.00012128,2]
[426585446,1782635194000,1001.70757889,0.00011838,2]
[426585445,1782635194000,61.18242111,0.00011838,2]
[426585448,1782635217000,-303.04,0.00012234,2]
[426585450,1782635225000,-166.66,0.00012394,2]
[426585452,1782635225000,-200.88963424,0.00012428,2]
[426585451,1782635225000,-150.0,0.00012422,2]
[426585449,1782635225000,-500.0,0.0001232,2]
[426585453,1782635225000,-288.76457702,0.00012435,2]
[426585454,1782635227000,200.0,0.000129,4]
[426585455,1782635270000,-14.27542298,0.00012435,2]
[426585458,1782635283000,348.999,0.00011926,2]
[426585457,1782635283000,151.001,0.00011926,2]
[426585459,1782635323000,-250.0,0.00012438,2]
[426585460,1782635324000,45301.76127018,0.00012466,25]
[426585462,1782635324000,-742.36,0.00012441,2]
[426585461,1782635324000,2353.32147042,0.00012466,25]
[426585463,1782635343000,-301.24,0.00012466,2]
[426585464,1782635361000,-210.6574484,0.00012489,2]
[426585468,1782635362000,-387.04562706,0.00012587,2]
[426585465,1782635362000,-39.3425516,0.00012489,2]
[426585466,1782635362000,-182.0,0.00012545,2]
[426585467,1782635362000,-301.24,0.00012559,2]
[426585470,1782635362000,-166.66,0.00012635,2]
[426585471,1782635362000,-303.04,0.00012635,2]
[426585469,1782635362000,-167.56,0.00012593,2]
[426585472,1782635362000,-301.24,0.00012651,2]